Cogmind - Beta 13 @@@ ROGUE MODE // 2024.06.06 @ 13:12:33 Player: RD-BNK(r) Result: Destroyed by TR-RSV(R) with Subdweller Laser Performance ------------- Evolutions (0) 0 Regions Visited (3) 600 Robots Destroyed (48) 240 Value Destroyed (1025) 1025 Prototype IDs (2) 40 Alien Tech Used (0) 0 Bonus (0) 0 TOTAL SCORE: 1905 Bonus ------- None Cogmind --------- Core Integrity 0/250 Matter 101/300 Energy 201/250 System Corruption 0% Temperature Cool (6) Movement Treading (360) Ox2 Location -10/Subcaves Parts ------- > --- POWER (1) -------- Ion Engine > --- PROPULSION (2) --- Spiked Treads Spiked Treads > --- UTILITY (2) ------ Huge Storage Unit Seismic Detector > --- WEAPON (2) ------- Riot Gun Barrage Gun > --- INVENTORY (25) --- Ion Engine Light Ion Engine Light Ion Engine Light Treads Light Treads Light Treads Light Treads Compact Wheel Compact Wheel Heat Sink Medium Storage Unit Structural Scanner Sensor Array Seismic Detector Light Armor Plating Hacking Suite Hacking Suite Assault Rifle Light Assault Rifle Light Assault Rifle Subdweller Shrapnel Launcher Multitool Enhanced Flamer Mining Claw Peak State ------------ > --- POWER ------------ Ion Engine > --- PROPULSION ------- Spiked Treads Spiked Treads > --- UTILITY ---------- Huge Storage Unit Subdweller Optics > --- WEAPON ----------- Battle Rifle Barrage Gun > --- INVENTORY -------- Ion Engine Light Ion Engine Light Ion Engine Light Treads Light Treads Light Treads Light Treads Compact Wheel Compact Wheel Heat Sink Medium Storage Unit Structural Scanner Sensor Array Seismic Detector Seismic Detector Light Armor Plating Hacking Suite Hacking Suite Assault Rifle Light Assault Rifle Light Assault Rifle Multitool Enhanced Flamer Mining Claw [Rating: 16] Favorites ----------- Power Light Ion Engine Engine Light Ion Engine Propulsion Light Treads Treads Light Treads Leg Aluminum Leg Utility Seismic Detector Device Seismic Detector Storage Huge Storage Unit Weapon Assault Rifle Energy Gun Riot Gun Ballistic Gun Assault Rifle Launcher Grenade Launcher Slashing Weapon Mining Claw Build | -11 -10 -10 -10 ------- Run | Yrd Mat Min Sub Slots Evolved . | . . . . Power . | . . . . Propulsion . | . . . . Utility . | . . . . Weapon . | . . . . Parts Attached 38 | 3 10 2 23 Power 3 | . 1 . 2 Engine 3 | . 1 . 2 Core . | . . . . Reactor . | . . . . Propulsion 8 | 2 1 . 5 Treads 8 | 2 1 . 5 Leg . | . . . . Wheel . | . . . . Hover . | . . . . Flight . | . . . . Utility 7 | 1 3 1 2 Device 5 | 1 1 1 2 Storage 2 | . 2 . . Processor . | . . . . Hackware . | . . . . Protection . | . . . . Artifact . | . . . . Weapon 20 | . 5 1 14 Energy Gun 1 | . . . 1 Energy Cannon . | . . . . Ballistic Gun 11 | . 3 . 8 Ballistic Cannon . | . . . . Launcher 3 | . 2 . 1 Special Weapon . | . . . . Impact Weapon . | . . . . Slashing Weapon 5 | . . 1 4 Piercing Weapon . | . . . . Special Melee Weapon . | . . . . Unidentified Prototypes . | . . . . Parts Lost 3 | . . . 3 Power 1 | . . . 1 Propulsion . | . . . . Utility . | . . . . Weapon 2 | . . . 2 Highest Loss Streak 1 | . . . 1 To Critical Strikes . | . . . . Average Slot Usage (%) 99 | . 100 100 99 Engine 13 | . 14 14 13 Treads 28 | . 28 28 28 Device 14 | . 14 14 14 Storage 14 | . 14 14 14 Ballistic Gun 17 | . 27 . 20 Launcher 5 | . . 14 3 Slashing Weapon 5 | . . 13 4 Naked Turns . | . . . . Heaviest Build 92 | 14 89 89 92 Greatest Support 40 | 40 40 40 40 Greatest Overweight (x) 2 | . 2 2 2 Average Overweight (x) 1 | . 1 2 2 Largest Inventory Capacity 25 | 8 25 25 25 Average Capacity 23 | 8 21 25 25 Most Carried 25 | 6 22 25 25 Average Carried 19 | 4 14 23 24 Final Capacity 25 | 8 25 25 25 Final Carried 25 | 4 22 25 24 Class Distribution -------------------- 86% | Mutant 13% | Derelict-Mutant Dominant Class ---------------- Mutant | -10/Materials Mutant | -10/Mines Derelict-Mutant | -10/Subcaves Resources | -11 -10 -10 -10 ----------- Run | Yrd Mat Min Sub Matter Collected 1169 | 195 485 170 319 Remotely . | . . . . Salvage Created 1395 | 90 695 273 337 Parts 94 | 12 47 21 14 Haulers Intercepted 2 | . 2 . . Recyclers Shooed 1 | . . 1 . Parts Field Recycled . | . . . . Retrieved Matter . | . . . . Parts Self-Destructed 10 | . . . 10 Prevented . | . . . . Kills | -11 -10 -10 -10 ------- Run | Yrd Mat Min Sub Combat Hostiles Destroyed 30 | . 15 6 9 Guns 18 | . 12 . 6 AOE 12 | . 3 6 3 Classes Destroyed 13 | 1 8 1 3 Worker 1 | . 1 . . Builder 2 | . 1 1 . Tunneler 6 | 4 1 1 . Hauler 2 | . 2 . . Recycler 3 | . . 3 . Mechanic 1 | . 1 . . Operator 2 | . 2 . . Watcher 1 | . 1 . . Swarmer 9 | . 6 3 . Grunt 12 | . 9 3 . Sentry 1 | . . . 1 Artisan 1 | . . . 1 Subdweller 8 | . . . 8 Best Kill Streak 5 | 3 5 5 2 Combat Bots Only 4 | . 4 3 2 Max Kills in Single Turn 2 | 1 2 2 2 Gunslinging . | . . . . Exploded 2 | . 2 2 1 Melee . | . . . . Uniques/NPCs Destroyed . | . . . . Combat | -11 -10 -10 -10 -------- Run | Yrd Mat Min Sub Hostile Shots Fired 137 | . 56 18 63 Missed 38 | . 15 8 15 Damage Taken 1543 | . 418 121 1004 Core 264 | . 40 44 180 Absorbed by Shields . | . . . . Regen/Repaired (Parts) 58 | . 58 . . Core Remaining (%) 100 | 100 . . . Volleys Fired 127 | 7 58 14 48 Largest 2 | 2 2 1 2 Hottest 78 | 40 40 30 78 Shots Fired 217 | 14 113 14 76 Gun 190 | 14 110 . 66 Cannon . | . . . . Launcher 27 | . 3 14 10 Special . | . . . . Kinetic 180 | 14 110 . 56 Thermal . | . . . . Explosive 27 | . 3 14 10 Electromagnetic 10 | . . . 10 Robot Hit Streak 21 | 6 21 4 16 Robot Miss Streak 5 | 1 5 . 2 Penetration Max . | . . . . Secondary Targets . | . . . . Shots Hit Robots 138 | 9 70 3 56 Core Hits 77 | 6 37 15 19 Critical Kills . | . . . . Critical Parts Destroyed 1 | . 1 . . Critical Strikes 1 | . 1 . . Destroy 1 | . 1 . . Melee Attacks 11 | . . 1 10 Impact . | . . . . Slashing 11 | . . 1 10 Piercing . | . . . . Sneak Attacks 1 | . . 1 . Combat Hostiles . | . . . . Follow-up Attacks . | . . . . Damage Inflicted 3401 | 107 1081 937 1276 Guns 1784 | 107 930 . 747 Cannons . | . . . . Explosions 1569 | . 151 889 529 Melee 48 | . . 48 . Ramming . | . . . . Kinetic 1632 | 107 930 . 595 Thermal . | . . . . Explosive 1569 | . 151 889 529 Electromagnetic 152 | . . . 152 Impact . | . . . . Slashing 48 | . . 48 . Piercing . | . . . . Highest Corruption . | . . . . Average Corruption . | . . . . Corruption Purged . | . . . . Corruption Blocked . | . . . . Overload Shots . | . . . . Overflow Damage 82 | . . 82 . Projectiles . | . . . . Explosions 64 | . . 64 . Melee 18 | . . 18 . Knockbacks . | . . . . Impact . | . . . . Kinetic . | . . . . Secondary . | . . . . Self-Inflicted Damage 24 | . . . 24 Shots 1 | . . . 1 Rammed . | . . . . Targets Rammed . | . . . . Kicked . | . . . . Crushed . | . . . . Highest Temperature 5 | . 2 4 5 Average Temperature 3 | . 2 3 4 Received Heat Transfer 438 | . 165 57 216 Siege Activations . | . . . . Robots Corrupted . | . . . . Combat Hostiles . | . . . . Parts Fried . | . . . . Impact Corruptions . | . . . . Robots Melted . | . . . . Combat Hostiles . | . . . . Parts Melted 1 | . . . 1 Heat Transferred . | . . . . Parts Sabotaged . | . . . . Parts Stolen . | . . . . Parts Stripped . | . . . . Power Chain Reactions . | . . . . Alert | -11 -10 -10 -10 ------- Run | Yrd Mat Min Sub Peak Influence 286 | 20 286 161 . Initial 13 | . 13 . . Average 59 | 8 77 37 . Maximum Alert Level 1 | . 1 . . Low Security (%) 92 | 100 86 100 . Level 1 7 | . 13 . . Level 2 . | . . . . Level 3 . | . . . . Level 4 . | . . . . Level 5 . | . . . . High Security . | . . . . Max Security . | . . . . Squads Dispatched 3 | . 3 . . Investigation 1 | . 1 . . Extermination . | . . . . Reinforcement 2 | . 2 . . Assault . | . . . . Garrison . | . . . . Intercept . | . . . . Searches Triggered . | . . . . Construction Impeded . | . . . . Haulers Reinforced . | . . . . Active Scanning Responses . | . . . . Cargo Convoy Interrupts . | . . . . Stealth | -11 -10 -10 -10 --------- Run | Yrd Mat Min Sub Distress Signals . | . . . . Communications Jammed . | . . . . Distress Signals . | . . . . Times Spotted 60 | . 39 11 10 Peak Tracking Total 5 | . 5 3 2 Tactical Retreats 7 | . 1 6 . Traps | -11 -10 -10 -10 ------- Run | Yrd Mat Min Sub Traps Triggered . | . . . . Indirectly . | . . . . Trap Hack Attempts . | . . . . Triggered . | . . . . Disarmed . | . . . . Reprogrammed . | . . . . Reused . | . . . . Traps Extracted . | . . . . Installed . | . . . . Triggered . | . . . . Machines | -11 -10 -10 -10 ---------- Run | Yrd Mat Min Sub Machines Disabled . | . . . . Max in Single Turn . | . . . . Machines Repaired . | . . . . Machines Dismantled . | . . . . Machines Sabotaged . | . . . . Overloaded Fab Kills . | . . . . Hacking | -11 -10 -10 -10 --------- Run | Yrd Mat Min Sub Machines Accessed 10 | . 9 . 1 Terminals 6 | . 6 . . Fabricators . | . . . . Repair Stations 1 | . 1 . . Recycling Units 2 | . 2 . . Scanalyzers . | . . . . Garrison Access . | . . . . Total Hacks 32 | . 30 . 2 Successful 20 | . 18 . 2 Failed 12 | . 12 . . Catastrophic 3 | . 3 . . Database Lockouts . | . . . . Manual 19 | . 19 . . Terminals 16 | . 16 . . Fabricators . | . . . . Repair Stations 2 | . 2 . . Recycling Units 12 | . 12 . . Scanalyzers . | . . . . Garrison Access . | . . . . Terminal Hacks 9 | . 7 . 2 Record 2 | . . . 2 Prototype ID Bank 1 | . 1 . . Terminal Index 1 | . 1 . . Alert Level 1 | . 1 . . Locate Traps 2 | . 2 . . Zone Layout 2 | . 2 . . Fabricator Hacks . | . . . . Repair Station Hacks 2 | . 2 . . Scan Component 1 | . 1 . . Repair 1 | . 1 . . Recycling Unit Hacks . | . . . . Scanalyzer . | . . . . Garrison Access Hacks . | . . . . Unauthorized Hacks 9 | . 9 . . Terminals 4 | . 4 . . Assimilate 1 | . 1 . . Botnet 2 | . 2 . . Operators 1 | . 1 . . Fabricators . | . . . . Repair Stations . | . . . . Recycling Units 5 | . 5 . . Monitor 1 | . 1 . . Reject 2 | . 2 . . Recyclers 1 | . 1 . . Mask 1 | . 1 . . Scanalyzers . | . . . . Garrison Access . | . . . . Data Cores Recovered . | . . . . Used . | . . . . Hacking Detections 8 | . 8 . . Full Trace Events 1 | . 1 . . Feedback Events . | . . . . Feedback Blocked . | . . . . Robot Schematics Acquired . | . . . . Robots Built . | . . . . Authchips . | . . . . Time . | . . . . Total Robot Build Rating . | . . . . Part Schematics Acquired . | . . . . Parts Built . | . . . . Authchips . | . . . . Time . | . . . . Total Part Build Rating . | . . . . Parts Repaired 1 | . 1 . . Time 26 | . 26 . . Parts Recycled . | . . . . Recycled Matter . | . . . . Retrieved Matter . | . . . . Retrieved Components . | . . . . Parts Scanalyzed . | . . . . Part Schematics Acquired . | . . . . Parts Damaged . | . . . . Bothacking | -11 -10 -10 -10 ------------ Run | Yrd Mat Min Sub Used RIF Installer . | . . . . Robots Hacked . | . . . . Non-combat . | . . . . Combat . | . . . . Robot Hacks Applied . | . . . . Relay Couplers Released . | . . . . Fabnet Peak Effective % . | . . . . Robots Rewired . | . . . . Allies Hacked . | . . . . Hacks Repelled . | . . . . Allies | -11 -10 -10 -10 -------- Run | Yrd Mat Min Sub Total Allies . | . . . . Largest Group . | . . . . Highest-Rated Group . | . . . . Highest-Rated Ally . | . . . . Total Orders . | . . . . Ally Attacks . | . . . . Total Damage . | . . . . Kills . | . . . . Allies Corrupted . | . . . . Allies Melted . | . . . . Intel | -11 -10 -10 -10 ------- Run | Yrd Mat Min Sub Robot Analysis Total . | . . . . Derelict Logs Recovered 1 | . . 1 . Drone Launches . | . . . . Drone Recoveries . | . . . . Exploration | -11 -10 -10 -10 ------------- Run | Yrd Mat Min Sub Turns Passed 7166 | 88 2932 2212 1934 Spaces Moved 2134 | 23 985 625 501 Core . | . . . . Treads 2134 | 23 985 625 501 Legs . | . . . . Wheels . | . . . . Hover . | . . . . Flight . | . . . . Fastest Speed 160 | 160 160 320 320 Average Speed 299 | 160 266 320 346 Slowest Speed 360 | 160 320 320 360 Overloaded Moves . | . . . . Propulsion Burnouts . | . . . . Robots Hopped . | . . . . Cave-ins Triggered . | . . . . Exploration Rate (%) 59 | 2 98 99 39 Regions Visited 3 Branch Regions 2 Pre-discovered Areas 1 | . . 1 . Known Exits Taken . | . . . . Unknown Exits Taken 3 | 1 1 1 . Scrap Searched 7 | . . 1 6 Spaces Dug . | . . . . Terrain Destroyed 119 | . 28 56 35 Melee . | . . . . Projectile . | . . . . AOE 119 | . 28 56 35 Terrain Rammed . | . . . . Walls Destroyed . | . . . . Machines Disabled . | . . . . Actions | -11 -10 -10 -10 --------- Run | Yrd Mat Min Sub Total 2666 | 61 1178 822 605 Wait 317 | 27 101 179 10 Move 2131 | 22 984 624 501 Hop . | . . . . Pick Up 28 | . 20 2 6 Fast Attach 1 | 1 . . . Attach 3 | . . . 3 Detach . | . . . . Swap 34 | 2 10 2 20 Drop 14 | 2 5 . 7 Fire 127 | 7 58 14 48 Melee 11 | . . 1 10 Ram . | . . . . Kick . | . . . . Crush . | . . . . Escape Stasis . | . . . . Rewire . | . . . . Trap . | . . . . Miscellaneous . | . . . . Route ------- -11/Scrapyard -10/Materials (discovered 5 exits: [*Mat x3] / [*Min] / *Sub) -10/Mines (discovered 4 exits: [*Mat x2] / [*Exi] / *Sub) -10/Subcaves History --------- Turn | Location | Event 5 | -11/Scrapyard | Discovered new exit (range 2) 89 | -11/Scrapyard | Entered Materials 309 | -10/Materials | Build established: Mutant 354 | -10/Materials | Discovered new exit (range 10) 713 | -10/Materials | Discovered new exit (range 16) 1214 | -10/Materials | Discovered new exit (range 12) 1314 | -10/Materials | Repaired Lgt. Treads 1381 | -10/Materials | Discovered new exit (range 8) 1452 | -10/Materials | Discovered new exit (range 8) 3021 | -10/Materials | Entered Mines 3253 | -10/Mines | Discovered new exit (range 16) 3294 | -10/Mines | Learned location of Zion (-7) 3467 | -10/Mines | Deemed a non-threat by the Exiles lab entrance 3467 | -10/Mines | Discovered new exit (range 5) 4282 | -10/Mines | Discovered new exit (range 5) 4897 | -10/Mines | A weapon hastily lodged in a ceiling crevice suddenly fell to the ground 5192 | -10/Mines | Discovered new exit (range 5) 5233 | -10/Mines | Entered Subcaves 5914 | -10/Subcaves | Core integrity fell below 50% 5964 | -10/Subcaves | Ambushed by angry Subdweller bent on revenge 6244 | -10/Subcaves | Visited Clippyterm 6254 | -10/Subcaves | Learned Factory garrison access intel 6364 | -10/Subcaves | Build established: Derelict-Mutant 6792 | -10/Subcaves | Shifting Twisted Machinery released Riot Gun 6861 | -10/Subcaves | Shifting Twisted Machinery released Barrage Gun 7133 | -10/Subcaves | Core integrity fell below 20% 7167 | -10/Subcaves | Destroyed by TR-RSV(R) with Subdweller Laser Last Messages --------------- It looks like you don't want to be "it," would you like help? Data stored: Factory garrison access intel. 06370_ Acquired Sub. Shrapnel Launcher. 06389_ Acquired 6 matter. 06464_ Subatomizers dissect the Sub. Optics, destroying it. 06482_ Sub. Optics shoots sparks and powers down. 06492_ P6-ZW1(u) tweaks Twisted Machinery. 06540_ Subatomizers dissect the Sub. Monowheel. Riot Gun falls loose from the Twisted Machinery. 06833_ Dropped Broken Sub. Optics. 06833_ Acquired Riot Gun. Barrage Gun falls loose from the Twisted Machinery. 06896_ Dropped Barrage Gun. 07058_ I5-S46(R) destroyed. 07061_ Acquired 33 matter. 07134_ Battle Rifle destroyed. 07144_ MS-182(R) misfires. 07148_ MS-182(R) destroyed. 07162_ Subatomizers dissect the Sub. Optics. 07165_ TR-RSV(R) misfires. Map ----- +----------------------------------------------------+ | ?????????????????????????????????????????????????? | | ???????##????????????????????????????????????????? | | ###??### ????????????????????????????????????????? | | # ##?? ????????????????????????????????????????? | | #?? ##??????????????????????????????????????? | | #??? ??????????????????????????????????????? | | ##??# ??????????????????????????????????????? | | #??# ??????????????????????????????????????? | | # #???# ##????????????????????????????????????? | | ##???# #????????????????????????????????????? | | #????# ##???????????????????????????????????? | | ##?????# ##??????????????????????????????????? | | ###????# ######?????????????????????????????? | | ##???# #"""""##????????????????????????????? | | #???# """ #????????????????????????????? | | #??## "# "" #????????????????????????????? | | #??## ### " ##???????????????????????????? | | ##??# ### #??????????????? ??????????? | | #####??## ### #?????????????? ??????????? | | ##?????## ### & ######????????# #?????????? | | #??????# ### " ###""#??????? #?????????? | | #?????## #?#"" ""#??????? ?????????? | | ??????# ###""""" ##????? ??????????? | | ??????# ### """ ##### #????????????? | | ??????# ##?# """ !%! #???????????????? | | ??????# #??# " @ ! ###????????????????? | | ??????# ###??#"""" #??????????????????? | | ?????## ####????""" #??????????????????? | | ????## #???????### " R #?????????????????? | | ##### ##????????##" ????????????????? | | # ####??????# " #???????????????? | | "" % ??????????????? | | ### " ## % ????????????? | | #######?? ### ## " "#? ## # ##???????????? | | ##??????? #?##?## "#?##?# #?$#????????????? | | ##?????? #?????#""?????? ?? ???????????? | | #?????? #????#"???????? ?? ???????????? | | #?????? ?????????????# #?????????????? | | #?????? ??????????????###?????????????? | | #?????? # # ??????????????????????????????? | | #???????? ######???????????????????????????????? | | ""#????????#?????????????????????????????????????? | | "##??????????????????????????????????????????????? | | ##???????????????????????????????????????????????? | | ?????????????????????????????????????????????????? | | ?????????????????????????????????????????????????? | | ?????????????????????????????????????????????????? | | ?????????????????????????????????????????????????? | | ?????????????????????????????????????????????????? | | ?????????????????????????????????????????????????? | +----------------------------------------------------+ Best States ------------- Heat Dissipation 25 Energy Generation 10 Energy Capacity 250 Matter Stores 300 Matter Capacity 300 Sight Range 21 Terrain Scan Density 10 Evasion (%) 40 Recoil Reduction 2 Item Schematics ----------------- None Robot Schematics ------------------ None Fabricated ------------ Nothing Alien Tech Used ----------------- None Achievements -------------- None Challenges ------------ None Game ------ Seed ShadePhysicsTorch Manual? 0 Play Time 00:33:14 Cumulative 123.7 hours Start 2024.06.06 @ 12:38:12 End 2024.06.06 @ 13:12:33 Sessions 1 Manual Loads 0 Difficulty Rogue Special Mode None Game No. 138 Rogue 138 Adventurer 0 Explorer 0 Win Type - Total 4 Types 2/0/2/0/0/0/0/0/0 Lore% 57 Gallery% 55 Achievement% 52 Wizard Run 0 Options --------- Layout 0 ASCII 0 Keyboard 0 Movement Mouse Keybinds 0 Fullscreen 2 Font 18/X11Bold Map View 76x50 Zoom Use 0% Tactical HUD 1 Map Filters NONE Filters NONE Steam 1 RUN: 8eace7c6-33df-4298-be6e-9c88b04c8023